bitfinex-derivatives/quotes_BTCF0:USTF0_20250117
["timestamp","ask_amount","ask_price","bid_price","bid_amount"]
[1737125479988,0.048702,102670.0,102660.0,0.3608]
[1737125480190,0.62012642,102690.0,102660.0,0.409506]
[1737125480383,0.048698,102680.0,102660.0,0.409506]
[1737125480576,0.048698,102680.0,102670.0,0.048702]
[1737125480982,0.048698,102680.0,102670.0,0.409502]
[1737125481286,1.548702,102670.0,102660.0,0.3608]
[1737125481787,1.5,102670.0,102660.0,0.3608]
[1737125481974,1.5,102670.0,102660.0,0.409506]
[1737125482288,1.548702,102670.0,102660.0,0.3608]
[1737125482988,1.75933642,102670.0,102660.0,0.3608]
[1737125483485,1.75933642,102670.0,102650.0,0.3608]
[1737125483486,0.048706,102660.0,102650.0,0.3608]
[1737125483689,0.048711,102650.0,102640.0,0.3608]
[1737125484989,0.048716,102640.0,102630.0,0.3608]
[1737125485185,0.048721,102630.0,102620.0,0.4976]
[1737125485486,0.048721,102630.0,102620.0,0.3608]
[1737125485487,0.048725,102630.0,102620.0,0.3608]
[1737125485791,0.25935542,102630.0,102620.0,0.3608]
[1737125485979,0.048725,102620.0,102610.0,0.3622616]
[1737125486175,0.04873,102610.0,102600.0,0.59128514]
[1737125486380,0.62016442,102610.0,102590.0,0.35646551]
[1737125486584,0.25936942,102600.0,102590.0,0.28348749]
[1737125486879,0.25936942,102600.0,102590.0,0.64428749]
[1737125486880,0.048735,102600.0,102590.0,0.64428749]
[1737125487081,0.048735,102600.0,102590.0,0.69302649]
[1737125487283,0.25936942,102600.0,102590.0,0.28348749]
[1737125487585,0.04874,102590.0,102580.0,0.3608]
[1737125487780,0.25937442,102590.0,102580.0,0.3608]
[1737125488296,0.04874,102590.0,102580.0,0.409544]
[1737125489086,0.25937442,102590.0,102580.0,0.3608]
[1737125489387,0.048736,102600.0,102580.0,0.409543]
[1737125489590,0.25937042,102600.0,102590.0,0.3608]
[1737125489981,0.048736,102600.0,102590.0,0.40954]
[1737125490377,1.8608,102620.0,102590.0,0.40954]
[1737125490582,0.048734,102610.0,102590.0,0.40954]
[1737125490789,0.048734,102610.0,102600.0,0.048735]
[1737125490984,0.048734,102610.0,102600.0,0.409535]
[1737125491183,1.5,102630.0,102610.0,0.04873]
[1737125491384,0.048722,102630.0,102620.0,0.409525]
[1737125491580,0.048725,102620.0,102610.0,0.3608]
[1737125492180,1.5,102630.0,102610.0,0.3608]
[1737125492487,0.57143442,102640.0,102620.0,0.409525]
[1737125492488,0.04872,102640.0,102620.0,0.409525]
[1737125492682,0.00146276,102650.0,102630.0,0.3608]
[1737125492882,0.25935042,102640.0,102630.0,0.3608]
[1737125493186,0.048724,102630.0,102610.0,0.409529]
[1737125493495,0.048717,102640.0,102620.0,0.409523]
[1737125493691,0.048717,102640.0,102630.0,0.3608]
[1737125493887,1.55017476,102650.0,102630.0,0.458236]
[1737125494193,0.048703,102670.0,102640.0,0.62015042]
[1737125494390,0.048698,102680.0,102660.0,0.7216]
[1737125494688,0.048698,102680.0,102640.0,0.35143442]
[1737125494689,1.75933642,102670.0,102640.0,0.189515]
[1737125494891,0.25934342,102660.0,102640.0,0.550315]
[1737125495088,0.21063442,102660.0,102640.0,0.5016]
[1737125495390,0.25934542,102650.0,102640.0,0.3608]
[1737125495584,0.25934542,102650.0,102630.0,0.3608]
[1737125495585,0.048716,102640.0,102630.0,0.3608]
[1737125495785,0.25935042,102640.0,102620.0,0.5023]
[1737125496000,0.25935042,102640.0,102620.0,0.3608]
[1737125496001,0.048721,102630.0,102620.0,0.3608]
[1737125496181,0.21063442,102640.0,102620.0,0.3608]
[1737125496182,0.048717,102640.0,102620.0,0.3608]
[1737125496496,0.048717,102640.0,102630.0,0.3608]
[1737125496681,0.048725,102620.0,102610.0,0.409529]
[1737125496885,0.048723,102630.0,102610.0,0.409529]
[1737125497086,0.048717,102640.0,102620.0,0.409525]
[1737125497284,0.048707,102660.0,102640.0,0.048714]
[1737125497491,0.048707,102660.0,102640.0,0.409514]
[1737125497692,0.048711,102650.0,102640.0,0.409514]
[1737125497990,0.25934542,102650.0,102630.0,0.40952]
[1737125498190,0.048711,102650.0,102640.0,0.3608]
[1737125498395,1.39237956,102690.0,102670.0,0.0487]
[1737125498396,0.28546179,102690.0,102670.0,0.0487]
[1737125498592,0.05015479,102690.0,102680.0,0.3608]
[1737125498993,0.26078921,102690.0,102680.0,0.3608]
[1737125499202,0.048697,102680.0,102670.0,0.3608]
[1737125499799,0.25933142,102680.0,102670.0,0.3608]
[1737125500001,0.25933142,102680.0,102640.0,0.693315]
[1737125500002,0.62013142,102680.0,102640.0,0.693315]
[1737125500204,0.25934442,102660.0,102640.0,0.693315]
[1737125500391,0.048703,102670.0,102650.0,0.3608]
[1737125500695,0.048698,102680.0,102660.0,0.409506]
[1737125500896,0.048698,102680.0,102670.0,0.3608]
[1737125501401,1.5,102670.0,102660.0,0.409506]
[1737125501695,0.048694,102690.0,102660.0,0.770306]
[1737125502001,0.048694,102690.0,102680.0,0.3608]
[1737125503703,0.148688,102700.0,102680.0,0.770295]
[1737125503893,0.148688,102700.0,102690.0,0.3608]
[1737125504297,0.148688,102700.0,102680.0,0.3608]
[1737125504298,0.35932242,102700.0,102680.0,0.3608]
[1737125504598,0.048692,102690.0,102680.0,0.3608]
[1737125504994,0.1,102700.0,102690.0,0.048692]
[1737125505196,0.17346477,102730.0,102690.0,0.92012642]
[1737125505399,0.17346477,102730.0,102720.0,0.770278]
[1737125506204,0.17346477,102730.0,102720.0,1.052978]
[1737125506590,0.25930742,102730.0,102720.0,0.8647]
[1737125507391,0.25930742,102730.0,102720.0,0.7216]
[1737125507607,0.25930742,102730.0,102710.0,0.3608]
[1737125507798,0.25931542,102720.0,102710.0,0.3608]
[1737125508001,0.048681,102720.0,102710.0,0.409483]
[1737125508198,0.57143442,102750.0,102720.0,0.048677]
[1737125508401,0.04867,102740.0,102730.0,0.3608]
[1737125508606,0.25930442,102740.0,102730.0,0.3608]
[1737125508803,0.21063442,102750.0,102730.0,0.3608]
[1737125509016,0.048668,102750.0,102740.0,0.3608]
[1737125509901,0.048668,102750.0,102730.0,0.3608]
[1737125509902,0.048668,102740.0,102730.0,0.3608]
[1737125510702,0.25930242,102740.0,102730.0,0.3608]
[1737125510906,0.21063442,102740.0,102720.0,0.409474]
[1737125511103,1.71063442,102730.0,102710.0,0.40948]
[1737125511308,1.548674,102730.0,102720.0,0.048678]
[1737125511508,1.75930842,102730.0,102710.0,0.409482]
[1737125511699,0.048678,102720.0,102710.0,0.409482]
[1737125511902,0.048678,102720.0,102710.0,0.770282]
[1737125512202,1.5,102730.0,102710.0,0.770282]
[1737125512410,1.548675,102730.0,102720.0,0.409478]
[1737125513207,1.548675,102730.0,102720.0,0.048678]
[1737125513504,1.71063442,102730.0,102710.0,0.3608]
[1737125513694,1.71063442,102730.0,102710.0,0.40948]
[1737125513695,1.548675,102730.0,102710.0,0.40948]
[1737125513900,1.71063442,102730.0,102710.0,0.40948]
[1737125514100,0.048678,102720.0,102710.0,0.40948]
[1737125514810,0.048678,102720.0,102710.0,0.3608]
[1737125515599,1.548675,102730.0,102710.0,0.3608]
[1737125515801,1.5,102730.0,102720.0,0.409478]
[1737125516914,0.3608,102750.0,102730.0,0.04867]
[1737125516915,0.097332,102750.0,102730.0,0.04867]
[1737125517100,0.048664,102750.0,102730.0,0.40947]
[1737125517301,1.5,102740.0,102730.0,0.40947]
[1737125518314,0.05011565,102770.0,102750.0,0.04866]
[1737125518609,0.05011465,102770.0,102760.0,0.409459]
[1737125518811,0.00146065,102770.0,102760.0,0.409459]
[1737125519207,0.048648,102790.0,102760.0,0.409459]
[1737125519408,0.048648,102790.0,102780.0,0.3608]
[1737125520102,0.048648,102790.0,102770.0,0.3608]
[1737125520103,0.048652,102780.0,102770.0,0.3608]
[1737125520306,0.048654,102770.0,102760.0,0.3608]
[1737125520501,1.5,102770.0,102760.0,0.3608]
[1737125520706,1.548654,102770.0,102760.0,0.3608]
[1737125521611,1.75928842,102770.0,102750.0,0.3608]
[1737125521806,0.048659,102760.0,102750.0,0.3608]
[1737125522203,1.548655,102770.0,102750.0,0.409463]
[1737125522414,1.548655,102770.0,102760.0,0.3608]
[1737125523109,0.048659,102760.0,102750.0,0.3608]
[1737125523712,0.048659,102760.0,102750.0,0.409464]
[1737125523918,0.048659,102760.0,102750.0,0.3608]
[1737125524216,1.5,102770.0,102750.0,0.7216]
[1737125524519,1.548655,102770.0,102760.0,0.409459]
[1737125525023,1.5,102770.0,102760.0,0.62009342]
[1737125525215,0.27346477,102800.0,102790.0,0.048645]
[1737125525518,0.1,102800.0,102790.0,0.7216]
[1737125525717,1.6,102800.0,102790.0,0.770245]
[1737125526018,0.1,102800.0,102790.0,0.770245]
[1737125527405,0.1,102800.0,102790.0,0.98087942]
[1737125527613,0.22208677,102840.0,102820.0,0.048627]
[1737125527917,0.17346477,102840.0,102830.0,0.3608]
[1737125528110,0.17346477,102850.0,102830.0,0.409426]
[1737125528422,0.22208277,102850.0,102840.0,0.3608]
[1737125528615,0.17346477,102850.0,102840.0,0.409421]
[1737125529410,0.17346477,102850.0,102840.0,0.3608]
[1737125529616,0.21063442,102850.0,102830.0,0.3608]
[1737125529818,0.048618,102850.0,102830.0,0.3608]
[1737125530022,0.048618,102850.0,102840.0,0.3608]
[1737125530321,0.048618,102850.0,102830.0,0.3608]
[1737125531019,0.048621,102840.0,102830.0,0.15654614]
[1737125531223,0.048621,102840.0,102830.0,0.3608]
[1737125531719,0.048617,102850.0,102830.0,0.409426]
[1737125531924,0.048621,102840.0,102830.0,0.3608]
[1737125532119,1.548626,102830.0,102820.0,0.3608]
[1737125532318,0.048626,102830.0,102820.0,0.3608]
[1737125532622,0.048626,102830.0,102810.0,0.409435]
[1737125532828,1.5,102820.0,102810.0,0.409435]
[1737125533419,1.548631,102820.0,102800.0,0.410898]
[1737125533822,1.5,102820.0,102810.0,0.409435]
[1737125534217,1.75926542,102820.0,102810.0,0.3608]
[1737125534525,1.548631,102820.0,102810.0,0.3608]
[1737125534922,1.5,102820.0,102810.0,0.3608]
[1737125535221,1.5,102820.0,102810.0,0.409435]
[1737125536722,0.048635,102810.0,102800.0,0.362259]
[1737125537427,1.548632,102820.0,102800.0,0.362259]
[1737125537621,1.548632,102820.0,102800.0,0.410896]
[1737125537925,1.548632,102820.0,102810.0,0.409435]
[1737125538125,1.5,102820.0,102810.0,0.409435]
[1737125538335,0.409427,102830.0,102810.0,0.409435]
[1737125538523,0.048627,102830.0,102810.0,0.409435]
[1737125538726,1.5,102820.0,102810.0,0.409435]
[1737125539335,1.5,102820.0,102810.0,0.3608]
[1737125540530,0.19507748,102850.0,102820.0,0.048628]
[1737125540836,0.00145948,102850.0,102840.0,0.409421]
[1737125541136,0.17261489,102860.0,102850.0,0.048616]
[1737125541319,0.048612,102860.0,102850.0,0.3608]
[1737125541632,0.048612,102860.0,102840.0,0.40942]
[1737125541826,1.909408,102870.0,102850.0,0.409416]
[1737125542030,1.548608,102870.0,102860.0,0.3608]
[1737125542424,0.31567389,102880.0,102860.0,0.409412]
[1737125542731,0.001459,102880.0,102860.0,0.409412]
[1737125542936,0.001459,102880.0,102870.0,0.409407]
[1737125544736,1.648594,102900.0,102870.0,0.3608]
[1737125544938,0.1,102900.0,102890.0,0.3608]
[1737125545124,0.148593,102900.0,102890.0,0.409398]
[1737125545329,0.31063442,102900.0,102880.0,0.3608]
[1737125545532,0.25923442,102890.0,102880.0,0.3608]
[1737125545732,0.0486,102890.0,102880.0,0.3608]
[1737125546433,0.0486,102890.0,102870.0,0.409403]
[1737125546632,0.048598,102890.0,102870.0,0.409403]
[1737125547236,0.62003242,102890.0,102870.0,0.3608]
[1737125547437,0.048602,102880.0,102860.0,0.40941]
[1737125547635,0.25923642,102880.0,102860.0,0.40941]
[1737125548132,0.048602,102880.0,102860.0,0.40941]
[1737125548432,0.048602,102880.0,102860.0,0.409408]
[1737125549133,0.048599,102890.0,102870.0,0.409407]
[1737125549346,1.82120789,102900.0,102880.0,0.4094]
[1737125549530,0.048598,102890.0,102880.0,0.3608]
[1737125549839,0.048598,102890.0,102880.0,0.409402]
[1737125550133,1.6,102900.0,102880.0,0.409402]
[1737125550338,1.648594,102900.0,102890.0,0.3608]
[1737125550735,1.85922842,102900.0,102890.0,0.3608]
[1737125550933,1.648594,102900.0,102890.0,0.3608]
[1737125551129,1.648594,102900.0,102890.0,0.409398]
[1737125551337,1.648594,102900.0,102890.0,0.3608]
[1737125551643,0.048598,102890.0,102880.0,0.3608]
[1737125552338,0.048598,102890.0,102870.0,0.409404]
[1737125552535,0.097199,102890.0,102870.0,0.409404]
[1737125552838,0.048598,102890.0,102870.0,0.409404]
[1737125553043,0.097199,102890.0,102870.0,0.409404]
[1737125553333,0.25923242,102890.0,102870.0,0.409404]
[1737125553540,0.048598,102890.0,102880.0,0.3608]
[1737125553840,1.82120889,102900.0,102890.0,0.048598]
[1737125554334,0.27261489,102900.0,102890.0,0.409398]
[1737125555047,0.27261489,102900.0,102890.0,0.62003242]
[1737125555240,0.20138404,102920.0,102890.0,0.62003242]
[1737125555241,0.20138404,102920.0,102910.0,0.048588]
[1737125555434,0.20138404,102920.0,102910.0,0.770188]
[1737125555843,0.16120669,102920.0,102910.0,0.770188]
[1737125556530,1.7606676,102940.0,102920.0,0.048583]
[1737125556738,0.25921342,102930.0,102920.0,0.3608]
[1737125556945,1.50145818,102940.0,102920.0,0.3608]
[1737125557240,0.1376,102980.0,102960.0,0.048562]
[1737125557539,1.5,102970.0,102960.0,0.409362]
[1737125557843,1.5,102970.0,102960.0,0.61999642]
[1737125558342,1.5,102970.0,102960.0,0.61969376]
[1737125559438,1.5,102970.0,102960.0,0.40905934]
[1737125560042,1.5,102970.0,102960.0,0.61969376]
[1737125560446,0.1,103000.0,102990.0,0.04855]
[1737125560640,0.1,103000.0,102990.0,0.77015]
[1737125560843,0.1,103000.0,102990.0,0.98078442]
[1737125561040,0.1,103000.0,102990.0,0.77015]
[1737125561548,0.1,103000.0,102990.0,0.7216]
[1737125561731,0.1,103000.0,102980.0,0.409354]
[1737125562345,0.148547,103000.0,102980.0,0.3608]
[1737125562560,0.71998142,103000.0,102980.0,0.3608]
[1737125562843,0.71998142,103000.0,102970.0,0.40936]
[1737125563743,0.71998142,103000.0,102980.0,0.3608]
[1737125563744,0.148547,103000.0,102980.0,0.3608]
[1737125564141,0.71998142,103000.0,102980.0,0.3608]
[1737125564644,0.186527,103040.0,103010.0,0.048539]
[1737125564645,0.048528,103040.0,103010.0,0.048539]
[1737125564840,1.28210761,103060.0,103030.0,0.3608]
[1737125565043,1.5,103050.0,103040.0,0.048527]
[1737125565241,0.73525319,103060.0,103040.0,0.048526]
[1737125565437,0.59095319,103060.0,103050.0,0.25915642]
[1737125565743,0.23015319,103060.0,103050.0,0.409322]
[1737125566448,0.93763568,103080.0,103050.0,0.409322]
[1737125566749,1.8608,103070.0,103050.0,0.409322]
[1737125566943,1.909313,103070.0,103040.0,0.409326]
[1737125567540,1.8608,103070.0,103050.0,0.048521]
[1737125567943,1.5,103070.0,103050.0,0.409321]
[1737125568745,1.548514,103070.0,103050.0,0.409321]
[1737125568944,1.909314,103070.0,103050.0,0.409321]
[1737125570645,0.048518,103060.0,103040.0,0.409326]
[1737125571042,0.048521,103060.0,103040.0,0.3608]
[1737125571547,0.048522,103050.0,103040.0,0.3608]
[1737125572842,0.048518,103060.0,103040.0,0.61995942]
[1737125573055,0.048518,103060.0,103050.0,0.3608]
[1737125573440,0.409318,103060.0,103040.0,0.048525]
[1737125573749,0.048534,103030.0,103010.0,0.04854]
[1737125574053,0.048531,103030.0,103010.0,0.40934]
[1737125574244,0.25916542,103030.0,103010.0,0.40934]
[1737125574446,0.048531,103030.0,103010.0,0.40934]
[1737125575349,0.048528,103040.0,103020.0,0.409336]
[1737125575646,0.048528,103040.0,103020.0,0.048536]
[1737125576047,0.25916242,103040.0,103020.0,0.409336]
[1737125576239,0.048528,103040.0,103020.0,0.409336]
[1737125576444,0.409324,103050.0,103030.0,0.048531]
[1737125576754,0.048531,103030.0,103010.0,0.409338]
[1737125577144,0.048536,103020.0,103010.0,0.3608]
[1737125577948,0.409336,103020.0,103000.0,0.41079809]
[1737125578148,0.048534,103030.0,103010.0,0.04854]
[1737125578352,0.61996242,103040.0,103020.0,0.048536]
[1737125578547,0.409328,103040.0,103020.0,0.048536]
[1737125578741,0.048531,103030.0,103010.0,0.409338]
[1737125578940,0.3608,103040.0,103010.0,0.409338]
[1737125578941,2.11996442,103040.0,103010.0,0.409338]
[1737125579141,0.25916942,103030.0,103010.0,0.409338]
[1737125579458,0.048536,103020.0,103010.0,0.3608]
[1737125579759,0.25917042,103020.0,103000.0,0.41080009]
[1737125580050,0.21063442,103010.0,103000.0,0.36225609]
[1737125580248,0.048537,103020.0,103000.0,0.41079909]
[1737125581046,0.25917142,103020.0,103000.0,0.41079909]
[1737125581248,0.25917542,103010.0,103000.0,0.36225609]
[1737125581957,0.25917142,103020.0,103000.0,0.41080209]
[1737125582456,0.3608,103030.0,103000.0,0.3608]
[1737125582662,0.3608,103030.0,103010.0,0.3608]
[1737125582663,0.048534,103030.0,103010.0,0.3608]
[1737125582957,0.25916942,103030.0,103010.0,0.409341]
[1737125584157,0.61996242,103040.0,103020.0,0.048536]
[1737125584363,0.25916542,103030.0,103020.0,0.048536]
[1737125584664,0.048536,103020.0,103010.0,0.40934]
[1737125584851,0.048532,103030.0,103020.0,0.048536]
[1737125585061,0.048529,103040.0,103030.0,0.048531]
[1737125585248,1.71982445,103050.0,103040.0,0.048527]
[1737125585553,0.17130245,103050.0,103040.0,0.409327]
[1737125586155,0.79125587,103060.0,103040.0,0.3608]
[1737125586457,0.25915642,103050.0,103040.0,0.3608]
[1737125587556,0.57143442,103050.0,103030.0,0.409329]
[1737125587761,0.25916142,103040.0,103030.0,0.409329]
[1737125588153,0.57143442,103040.0,103010.0,0.37210943]
[1737125588354,0.048532,103030.0,103020.0,0.048534]
[1737125588654,0.25916242,103040.0,103020.0,0.457868]
[1737125588859,0.17130245,103060.0,103050.0,0.048522]
[1737125589059,0.048515,103070.0,103050.0,0.409322]
[1737125589250,0.048515,103070.0,103060.0,0.3608]
[1737125589455,0.048517,103060.0,103050.0,0.409322]
[1737125589762,0.25915142,103060.0,103050.0,0.048522]
[1737125590064,0.61995142,103060.0,103040.0,0.409324]
[1737125590262,0.25915642,103050.0,103040.0,0.409324]
[1737125590560,0.61995642,103050.0,103040.0,0.048527]
[1737125590755,0.048527,103040.0,103030.0,0.18303]
[1737125590957,0.74503677,103060.0,103030.0,0.54383]
[1737125591257,0.22212435,103060.0,103040.0,0.048527]
[1737125591449,0.22212435,103050.0,103040.0,0.048527]
[1737125591649,0.22212435,103050.0,103030.0,0.54383]
[1737125592060,0.22212435,103050.0,103030.0,0.4953]
[1737125592263,0.22212435,103050.0,103040.0,0.048527]
[1737125592568,0.48128377,103050.0,103030.0,0.54383]
[1737125592763,0.048527,103040.0,103030.0,0.54383]
[1737125593264,0.22212635,103050.0,103040.0,0.048527]
[1737125593564,0.17360235,103050.0,103040.0,0.048527]
[1737125593957,0.17360235,103050.0,103040.0,0.409327]
[1737125594263,0.22212435,103050.0,103040.0,0.409327]
[1737125594459,0.17360235,103050.0,103040.0,0.409327]
[1737125595167,0.17360235,103050.0,103040.0,0.45703901]
[1737125595565,0.17360235,103050.0,103040.0,0.409327]
[1737125595762,0.17360235,103050.0,103040.0,0.54496229]
[1737125596067,0.17360235,103050.0,103040.0,0.409327]
[1737125596264,1.85775664,103060.0,103040.0,0.409327]
[1737125596459,1.85775664,103060.0,103050.0,0.3608]
[1737125597365,1.67360235,103060.0,103050.0,0.409322]
[1737125597660,1.85775464,103060.0,103050.0,0.409322]
[1737125597863,1.68415229,103060.0,103050.0,0.409322]
[1737125598655,1.03386448,103080.0,103050.0,0.409322]
[1737125598656,0.13563529,103070.0,103050.0,0.409322]
[1737125598855,0.19992119,103080.0,103070.0,0.048513]
[1737125599069,0.1485,103100.0,103080.0,0.048507]
[1737125599262,0.5093,103100.0,103090.0,0.13563529]
[1737125599460,0.5093,103100.0,103080.0,0.54493929]
[1737125599661,1.6,103100.0,103090.0,0.18413829]
[1737125599970,1.9608,103100.0,103090.0,0.18413829]
[1737125600159,1.9608,103100.0,103080.0,0.048506]
[1737125600365,2.009301,103100.0,103080.0,0.048506]
[1737125600565,0.3608,103090.0,103080.0,0.18414129]
[1737125600765,0.409306,103090.0,103070.0,0.32014529]
[1737125601164,1.548508,103080.0,103060.0,0.59158745]
[1737125601370,1.52667371,103080.0,103060.0,0.63931134]
[1737125601671,1.52667371,103080.0,103070.0,0.048513]
[1737125602057,0.048508,103080.0,103070.0,0.048513]
[1737125602263,1.5,103070.0,103060.0,0.61834557]
[1737125602472,1.909315,103070.0,103050.0,0.409321]
[1737125602766,0.048517,103060.0,103050.0,0.45704217]
[1737125603067,0.048517,103060.0,103050.0,0.048521]
[1737125603273,0.048522,103050.0,103040.0,0.76524162]
[1737125603465,0.048522,103050.0,103040.0,0.81297144]
[1737125603660,0.048522,103050.0,103040.0,0.40998536]
[1737125603864,0.048522,103050.0,103040.0,0.00145554]
[1737125604060,0.409322,103050.0,103040.0,0.00145554]
[1737125605969,0.61835257,103050.0,103020.0,0.53338161]
[1737125606270,0.61835257,103050.0,103020.0,0.62965234]
[1737125606271,0.409328,103040.0,103020.0,0.62965234]
[1737125606577,0.409328,103040.0,103020.0,0.79094518]
[1737125606866,0.409328,103040.0,103020.0,0.58191461]
[1737125607075,0.048531,103030.0,103020.0,0.53338161]
[1737125607266,0.048531,103030.0,103020.0,0.58191761]
[1737125607577,0.048531,103030.0,103020.0,0.409336]
[1737125607773,1.548531,103030.0,103020.0,0.409336]
[1737125608468,1.548531,103030.0,103020.0,0.3608]
[1737125608862,0.048536,103020.0,103010.0,0.53483759]
[1737125609464,0.048536,103020.0,103010.0,0.36225598]
[1737125609669,0.409336,103020.0,103010.0,0.00145598]
[1737125609870,0.048536,103020.0,103010.0,0.00145598]
[1737125610067,0.409336,103020.0,103010.0,0.00145598]
[1737125611479,0.61836657,103020.0,103010.0,0.00145598]
[1737125611672,0.048541,103010.0,103000.0,0.40298608]
[1737125611871,0.61837157,103010.0,103000.0,0.17258161]
[1737125612965,0.409341,103010.0,103000.0,0.17258161]
[1737125613171,0.409341,103010.0,102990.0,0.33200757]
[1737125613371,0.3608,103000.0,102980.0,0.81233908]
[1737125613575,0.04855,102990.0,102980.0,0.40298608]
[1737125613768,1.75758057,102990.0,102980.0,0.40298608]
[1737125613976,2.26878057,102990.0,102980.0,0.40298608]
[1737125614673,0.048555,102980.0,102970.0,0.40444269]
[1737125614878,0.25758557,102980.0,102970.0,0.40444269]
[1737125615085,0.048555,102980.0,102970.0,0.81380269]
[1737125615288,0.048555,102980.0,102970.0,0.45300269]
[1737125615969,0.048555,102980.0,102970.0,0.05001661]
[1737125616366,2.22023057,102990.0,102970.0,0.36225661]
[1737125616672,0.75566857,103020.0,103000.0,0.048543]
[1737125616876,0.409338,103020.0,103000.0,0.048543]
[1737125617077,0.25757357,103010.0,102990.0,0.409347]
[1737125617272,0.20903057,103010.0,102990.0,0.409347]
[1737125617479,0.048542,103010.0,102990.0,0.409347]
[1737125617778,0.409342,103010.0,102990.0,0.409347]
[1737125618978,0.409342,103010.0,102990.0,0.457894]
[1737125619173,1.909342,103010.0,102990.0,0.409347]
[1737125619375,1.909342,103010.0,102990.0,0.457895]
[1737125619576,1.909342,103010.0,102990.0,0.409347]
[1737125619777,1.909342,103010.0,102990.0,0.457895]
[1737125619977,1.548542,103010.0,103000.0,0.409346]
[1737125620175,0.56118881,103030.0,103000.0,0.409346]
[1737125620482,0.56118881,103030.0,103010.0,0.048539]
[1737125620684,0.56118881,103030.0,103000.0,0.409346]
[1737125620685,0.048539,103020.0,103000.0,0.409344]
[1737125620891,0.25756957,103020.0,103000.0,0.409343]
[1737125621187,0.25756957,103020.0,103000.0,0.3608]
[1737125621382,0.13579203,103010.0,103000.0,0.048545]
[1737125621580,0.18433503,103010.0,102990.0,0.409347]
[1737125621780,0.18433503,103010.0,102990.0,0.457894]
[1737125621978,1.68433503,103010.0,102990.0,0.457895]
[1737125622174,1.68433503,103010.0,102990.0,0.63047561]
[1737125622378,1.68433503,103010.0,102990.0,0.58192861]
[1737125622684,1.68433503,103010.0,102990.0,0.63047661]
[1737125622985,1.68433503,103010.0,103000.0,0.048546]
[1737125624190,1.68433503,103010.0,102990.0,0.409349]
[1737125624784,0.18433503,103010.0,102990.0,0.409349]
[1737125625287,1.5,103000.0,102990.0,0.409349]
[1737125626494,1.63579203,103000.0,102990.0,0.409349]
[1737125627379,0.64844884,103030.0,102990.0,0.54514103]
[1737125627581,0.048536,103020.0,103010.0,0.04854]
[1737125627884,1.5,103010.0,103000.0,0.409344]
[1737125628088,1.68433303,103010.0,103000.0,0.409344]
[1737125628794,1.5,103010.0,103000.0,0.409344]
[1737125629491,1.548541,103010.0,103000.0,0.409344]
[1737125629678,1.8608,103010.0,102990.0,0.53338161]
[1737125629878,0.048546,103000.0,102990.0,0.58193061]
[1737125630096,0.18433803,103000.0,102990.0,0.53338161]
[1737125630290,2.055343,103010.0,102990.0,0.58193061]
[1737125630491,0.048546,103000.0,102990.0,0.58193061]
[1737125630794,0.048546,103000.0,102990.0,0.3608]
[1737125631397,0.048546,103000.0,102990.0,0.40935]
[1737125631899,1.646,103010.0,102990.0,0.3608]
[1737125632188,1.5,103010.0,103000.0,0.048546]
[1737125632492,1.5,103010.0,103000.0,0.409346]
[1737125632791,1.5,103010.0,103000.0,0.048546]
[1737125633292,0.18433303,103010.0,102990.0,0.409348]
[1737125633792,1.548546,103000.0,102990.0,0.409348]
[1737125634098,0.18433803,103000.0,102990.0,0.3608]
[1737125634394,0.048546,103000.0,102990.0,0.40935]
[1737125634694,0.409338,103020.0,103000.0,0.048546]
[1737125634893,0.048538,103020.0,103000.0,0.409346]
[1737125635190,0.54513003,103020.0,103000.0,0.409346]
[1737125635396,0.54513003,103020.0,103000.0,0.048546]
[1737125635694,0.18433003,103020.0,103000.0,0.409346]
[1737125635891,0.54513003,103020.0,103000.0,0.409346]
[1737125636502,0.54513003,103020.0,103010.0,0.17283249]
[1737125637098,0.54513003,103020.0,103010.0,0.22137349]
[1737125637099,0.409338,103020.0,103010.0,0.22137349]
[1737125638088,0.048538,103020.0,103010.0,0.22137349]
[1737125638495,0.409338,103020.0,103010.0,0.22137349]
[1737125638994,0.54513003,103020.0,103010.0,0.17283249]
[1737125639794,0.409338,103020.0,103010.0,0.17283249]
[1737125639987,0.409338,103020.0,103010.0,0.22137349]
[1737125640899,0.54513003,103020.0,103010.0,0.22137349]
[1737125641285,0.54513003,103020.0,103010.0,0.17283249]
[1737125641491,0.18433003,103020.0,103010.0,0.22137349]
[1737125641690,0.048538,103020.0,103010.0,0.58217349]
[1737125642503,0.00145681,103030.0,103020.0,0.048536]
[1737125642692,0.00145681,103030.0,103020.0,0.409336]
[1737125643200,0.00145681,103030.0,103020.0,0.54512803]
[1737125643393,0.67700326,103050.0,103040.0,0.048527]
[1737125643394,0.53440326,103050.0,103040.0,0.048527]
[1737125643595,0.17360326,103050.0,103040.0,0.409327]
[1737125644100,0.30939529,103050.0,103040.0,0.409327]
[1737125644293,0.409318,103060.0,103050.0,0.048522]
[1737125644294,0.54511003,103060.0,103050.0,0.048522]
[1737125644492,0.048522,103050.0,103040.0,0.409325]
[1737125644698,0.18431403,103050.0,103040.0,0.409325]
[1737125645290,0.54511403,103050.0,103030.0,0.40933]
[1737125645495,0.18431903,103040.0,103030.0,0.63977332]
[1737125646496,0.18431903,103040.0,103030.0,0.8123868]
[1737125647594,0.18431903,103040.0,103030.0,0.4515868]
[1737125647796,0.54511903,103040.0,103030.0,0.4030568]
[1737125648308,0.18431903,103040.0,103030.0,0.4030568]
[1737125648599,0.54511903,103040.0,103030.0,0.4030568]
[1737125648795,0.048531,103030.0,103020.0,0.23022435]
[1737125648998,0.048536,103020.0,103010.0,0.00088134]
[1737125649196,1.548541,103010.0,103000.0,0.36018779]
[1737125649405,2.04513303,103010.0,103000.0,0.36018779]
[1737125649699,2.40593303,103010.0,103000.0,0.36018779]
[1737125650108,0.048549,103000.0,102980.0,0.048552]
[1737125650295,0.18434203,102990.0,102980.0,0.048552]